[Event "November 21 Late 2023"]
[Site "https://www.chess.com"]
[Date "2023.11.21"]
[Round "9"]
[White "Gerbelli Neto, Eduardo"]
[Black "liwadas82"]
[Result "1/2-1/2"]
[Board "79"]
[TimeControl "180+1"]
[WhiteFideId "2103281"]
[WhiteElo "2178"]
[BlackElo "2453"]
[WhiteTeam "BRA"]
[WhiteClock "0:00:16"]
[BlackClock "0:00:05"]

1. e4 {[%clk 0:02:57]}  e5 {[%clk 0:02:59]} 2. Nc3 {[%clk 0:02:55]}  Nf6 {[%clk 0:02:58]} 3. Nf3 {[%clk 0:02:50]}  Nc6 {[%clk 0:02:58]} 4. d4 {[%clk 0:02:50]}  exd4 {[%clk 0:02:57]} 5. Nxd4 {[%clk 0:02:51]}  Bb4 {[%clk 0:02:55]} 6. Nxc6 {[%clk 0:02:50]}  bxc6 {[%clk 0:02:53]} 7. Bd3 {[%clk 0:02:47]}  d5 {[%clk 0:02:53]} 8. Bd2 {[%clk 0:02:32]}  O-O {[%clk 0:02:46]} 9. O-O {[%clk 0:02:31]}  Bxc3 {[%clk 0:02:39]} 10. Bxc3 {[%clk 0:02:27]}  dxe4 {[%clk 0:02:37]} 11. Bxf6 {[%clk 0:02:25]}  Qxf6 {[%clk 0:02:38]} 12. Bxe4 {[%clk 0:02:24]}  Qxb2 {[%clk 0:02:34]} 13. Bxc6 {[%clk 0:02:20]}  Rb8 {[%clk 0:02:31]} 14. Rb1 {[%clk 0:02:19]}  Qxb1 {[%clk 0:02:28]} 15. Qxb1 {[%clk 0:02:20]}  Rxb1 {[%clk 0:02:27]} 16. Rxb1 {[%clk 0:02:20]}  Rd8 {[%clk 0:02:20]} 17. Bf3 {[%clk 0:01:48]}  Kf8 {[%clk 0:02:11]} 18. Rb4 {[%clk 0:01:42]}  Ke7 {[%clk 0:01:59]} 19. Ra4 {[%clk 0:01:36]}  a6 {[%clk 0:01:58]} 20. Rc4 {[%clk 0:01:32]}  Kd6 {[%clk 0:01:39]} 21. Kf1 {[%clk 0:01:24]}  c5 {[%clk 0:01:38]} 22. Rc3 {[%clk 0:01:14]}  g5 {[%clk 0:01:26]} 23. h3 {[%clk 0:00:55]}  Re8 {[%clk 0:01:05]} 24. Ra3 {[%clk 0:00:53]}  Kc7 {[%clk 0:01:00]} 25. Be2 {[%clk 0:00:50]}  Kb6 {[%clk 0:00:57]} 26. Rb3+ {[%clk 0:00:50]}  Kc7 {[%clk 0:00:57]} 27. Rf3 {[%clk 0:00:48]}  f5 {[%clk 0:00:56]} 28. Ra3 {[%clk 0:00:39]}  Re6 {[%clk 0:00:50]} 29. Bd3 {[%clk 0:00:38]}  Rd6 {[%clk 0:00:48]} 30. Ke2 {[%clk 0:00:34]}  h6 {[%clk 0:00:48]} 31. g3 {[%clk 0:00:30]}  Kb6 {[%clk 0:00:45]} 32. Rb3+ {[%clk 0:00:29]}  Kc7 {[%clk 0:00:45]} 33. Ke3 {[%clk 0:00:26]}  Re6+ {[%clk 0:00:44]} 34. Kd2 {[%clk 0:00:26]}  Rd6 {[%clk 0:00:44]} 35. Kc3 {[%clk 0:00:25]}  Bb7 {[%clk 0:00:39]} 36. Ra3 {[%clk 0:00:23]}  f4 {[%clk 0:00:38]} 37. gxf4 {[%clk 0:00:22]}  gxf4 {[%clk 0:00:39]} 38. Ra4 {[%clk 0:00:23]}  Rf6 {[%clk 0:00:37]} 39. Be4 {[%clk 0:00:21]}  Bxe4 {[%clk 0:00:34]} 40. Rxe4 {[%clk 0:00:21]}  Kc6 {[%clk 0:00:33]} 41. Kc4 {[%clk 0:00:22]}  f3 {[%clk 0:00:31]} 42. Rh4 {[%clk 0:00:20]}  Rd6 {[%clk 0:00:28]} 43. Rh5 {[%clk 0:00:19]}  Rd4+ {[%clk 0:00:28]} 44. Kc3 {[%clk 0:00:20]}  Ra4 {[%clk 0:00:28]} 45. Rxh6+ {[%clk 0:00:20]}  Kb5 {[%clk 0:00:28]} 46. Kb3 {[%clk 0:00:20]}  Re4 {[%clk 0:00:28]} 47. Rf6 {[%clk 0:00:19]}  Rb4+ {[%clk 0:00:19]} 48. Kc3 {[%clk 0:00:20]}  Rc4+ {[%clk 0:00:19]} 49. Kd3 {[%clk 0:00:20]}  Ra4 {[%clk 0:00:19]} 50. Rxf3 {[%clk 0:00:19]}  Rxa2 {[%clk 0:00:18]} 51. h4 {[%clk 0:00:19]}  Ra1 {[%clk 0:00:17]} 52. h5 {[%clk 0:00:17]}  Rh1 {[%clk 0:00:16]} 53. Rf5 {[%clk 0:00:18]}  a5 {[%clk 0:00:15]} 54. Kc3 {[%clk 0:00:18]}  Rh3+ {[%clk 0:00:14]} 55. f3 {[%clk 0:00:18]}  a4 {[%clk 0:00:14]} 56. Kb2 {[%clk 0:00:17]}  Kb4 {[%clk 0:00:14]} 57. c3+ {[%clk 0:00:16]}  Kc4 {[%clk 0:00:10]} 58. Ka3 {[%clk 0:00:16]}  Kxc3 {[%clk 0:00:09]} 59. Kxa4 {[%clk 0:00:17]}  Kd4 {[%clk 0:00:09]} 60. Kb5 {[%clk 0:00:17]}  c4 {[%clk 0:00:06]} 61. Rf4+ {[%clk 0:00:15]}  Ke3 {[%clk 0:00:05]} 62. Rxc4 {[%clk 0:00:15]}  Rxh5+ {[%clk 0:00:04]} 63. Rc5 {[%clk 0:00:15]}  Rxc5+ {[%clk 0:00:04]} 64. Kxc5 {[%clk 0:00:16]}  Kxf3 {[%clk 0:00:05]} 1/2-1/2

[Event "November 21 Late 2023"]
[Site "https://www.chess.com"]
[Date "2023.11.21"]
[Round "9"]
[White "Minko, Dmitry"]
[Black "Butti, Enrique"]
[Result "1-0"]
[Board "80"]
[TimeControl "180+1"]
[WhiteFideId "24188468"]
[BlackFideId "3700470"]
[WhiteElo "1992"]
[BlackElo "2080"]
[WhiteTeam "FID"]
[BlackTeam "PAR"]
[WhiteClock "0:00:17"]
[BlackClock "0:00:17"]

1. e4 {[%clk 0:03:00]}  c5 {[%clk 0:02:59]} 2. Nf3 {[%clk 0:02:59]}  d6 {[%clk 0:02:58]} 3. d4 {[%clk 0:03:00]}  cxd4 {[%clk 0:02:58]} 4. Nxd4 {[%clk 0:03:01]}  Nf6 {[%clk 0:02:58]} 5. Nc3 {[%clk 0:03:02]}  a6 {[%clk 0:02:57]} 6. f3 {[%clk 0:03:01]}  Nc6 {[%clk 0:02:56]} 7. Be3 {[%clk 0:03:02]}  Nxd4 {[%clk 0:02:55]} 8. Qxd4 {[%clk 0:03:00]}  e5 {[%clk 0:02:54]} 9. Qd2 {[%clk 0:03:00]}  Be6 {[%clk 0:02:54]} 10. O-O-O {[%clk 0:03:00]}  Rc8 {[%clk 0:02:53]} 11. Kb1 {[%clk 0:02:57]}  Be7 {[%clk 0:02:51]} 12. g4 {[%clk 0:02:56]}  Qa5 {[%clk 0:02:44]} 13. Nd5 {[%clk 0:02:49]}  Qxd2 {[%clk 0:02:43]} 14. Nxf6+ {[%clk 0:02:49]}  Bxf6 {[%clk 0:02:41]} 15. Rxd2 {[%clk 0:02:49]}  Be7 {[%clk 0:02:38]} 16. Be2 {[%clk 0:02:49]}  O-O {[%clk 0:02:29]} 17. Rhd1 {[%clk 0:02:49]}  Rc6 {[%clk 0:02:29]} 18. f4 {[%clk 0:02:42]}  f6 {[%clk 0:02:22]} 19. h3 {[%clk 0:02:37]}  Rfc8 {[%clk 0:02:20]} 20. c3 {[%clk 0:02:33]}  b5 {[%clk 0:02:15]} 21. Bf3 {[%clk 0:02:21]}  a5 {[%clk 0:02:11]} 22. g5 {[%clk 0:01:54]}  fxg5 {[%clk 0:02:10]} 23. fxe5 {[%clk 0:01:53]}  dxe5 {[%clk 0:02:10]} 24. Bg4 {[%clk 0:01:54]}  h5 {[%clk 0:01:56]} 25. Bxe6+ {[%clk 0:01:39]}  Rxe6 {[%clk 0:01:55]} 26. Rd5 {[%clk 0:01:40]}  Rb8 {[%clk 0:01:50]} 27. Rg1 {[%clk 0:01:39]}  Rg6 {[%clk 0:01:37]} 28. Rxe5 {[%clk 0:01:39]}  Bf6 {[%clk 0:01:36]} 29. Rd5 {[%clk 0:01:31]}  g4 {[%clk 0:01:31]} 30. e5 {[%clk 0:01:28]}  Be7 {[%clk 0:01:24]} 31. hxg4 {[%clk 0:01:00]}  hxg4 {[%clk 0:01:24]} 32. Rd4 {[%clk 0:00:58]}  g3 {[%clk 0:01:22]} 33. Bf4 {[%clk 0:00:57]}  g2 {[%clk 0:01:19]} 34. Rd2 {[%clk 0:00:56]}  Rg4 {[%clk 0:01:16]} 35. Bh2 {[%clk 0:00:55]}  b4 {[%clk 0:01:07]} 36. cxb4 {[%clk 0:00:55]}  Rbxb4 {[%clk 0:01:01]} 37. Rdxg2 {[%clk 0:00:53]}  Rxg2 {[%clk 0:01:00]} 38. Rxg2 {[%clk 0:00:54]}  Kf7 {[%clk 0:01:00]} 39. Kc2 {[%clk 0:00:52]}  g5 {[%clk 0:00:59]} 40. b3 {[%clk 0:00:48]}  Ke6 {[%clk 0:00:58]} 41. Kd3 {[%clk 0:00:40]}  a4 {[%clk 0:00:52]} 42. Kc3 {[%clk 0:00:36]}  axb3 {[%clk 0:00:51]} 43. axb3 {[%clk 0:00:37]}  Re4 {[%clk 0:00:50]} 44. Ra2 {[%clk 0:00:37]}  Bb4+ {[%clk 0:00:46]} 45. Kd3 {[%clk 0:00:37]}  Rh4 {[%clk 0:00:46]} 46. Rg2 {[%clk 0:00:28]}  g4 {[%clk 0:00:40]} 47. Bg3 {[%clk 0:00:23]}  Rh3 {[%clk 0:00:39]} 48. Ke4 {[%clk 0:00:23]}  Bc3 {[%clk 0:00:36]} 49. Rg1 {[%clk 0:00:19]}  Rh7 {[%clk 0:00:29]} 50. Bf4 {[%clk 0:00:18]}  Rg7 {[%clk 0:00:25]} 51. Rc1 {[%clk 0:00:16]}  Bb4 {[%clk 0:00:21]} 52. Rc6+ {[%clk 0:00:16]}  Kd7 {[%clk 0:00:20]} 53. Rb6 {[%clk 0:00:17]}  Be7 {[%clk 0:00:19]} 54. e6+ {[%clk 0:00:16]}  Kc8 {[%clk 0:00:17]} 55. Rb8# {[%clk 0:00:17]} 1-0

[Event "November 21 Late 2023"]
[Site "https://www.chess.com"]
[Date "2023.11.21"]
[Round "9"]
[White "Bugayev, Vladimir"]
[Black "Ferreira, Vitor Hugo Vieira"]
[Result "1-0"]
[Board "82"]
[TimeControl "180+1"]
[WhiteFideId "30901480"]
[BlackFideId "2119765"]
[WhiteElo "2365"]
[BlackElo "2123"]
[WhiteTeam "USA"]
[BlackTeam "BRA"]
[WhiteClock "0:01:26"]
[BlackClock "0:01:39"]

1. e4 {[%clk 0:03:00]}  c5 {[%clk 0:02:51]} 2. Nc3 {[%clk 0:03:00]}  d6 {[%clk 0:02:50]} 3. f4 {[%clk 0:03:00]}  g6 {[%clk 0:02:49]} 4. Nf3 {[%clk 0:03:00]}  Bg7 {[%clk 0:02:49]} 5. Bc4 {[%clk 0:03:00]}  Nc6 {[%clk 0:02:48]} 6. O-O {[%clk 0:03:01]}  e6 {[%clk 0:02:47]} 7. d4 {[%clk 0:03:01]}  Nxd4 {[%clk 0:02:45]} 8. Be3 {[%clk 0:03:01]}  Nxf3+ {[%clk 0:02:41]} 9. Qxf3 {[%clk 0:03:02]}  Ne7 {[%clk 0:02:41]} 10. f5 {[%clk 0:03:02]}  gxf5 {[%clk 0:02:41]} 11. exf5 {[%clk 0:03:03]}  Nxf5 {[%clk 0:02:41]} 12. g4 {[%clk 0:03:03]}  d5 {[%clk 0:02:32]} 13. Bb5+ {[%clk 0:02:58]}  Bd7 {[%clk 0:02:29]} 14. gxf5 {[%clk 0:02:58]}  d4 {[%clk 0:02:20]} 15. fxe6 {[%clk 0:02:58]}  O-O {[%clk 0:02:14]} 16. exd7 {[%clk 0:02:40]}  dxe3 {[%clk 0:02:12]} 17. Nd5 {[%clk 0:02:29]}  a6 {[%clk 0:02:11]} 18. Bd3 {[%clk 0:02:27]}  Qxd7 {[%clk 0:02:07]} 19. Qe4 {[%clk 0:02:16]}  f5 {[%clk 0:02:04]} 20. Ne7+ {[%clk 0:01:57]}  Kh8 {[%clk 0:02:04]} 21. Rxf5 {[%clk 0:01:44]}  Rxf5 {[%clk 0:02:00]} 22. Qxf5 {[%clk 0:01:40]}  Qxf5 {[%clk 0:01:42]} 23. Nxf5 {[%clk 0:01:40]}  Bxb2 {[%clk 0:01:41]} 24. Rb1 {[%clk 0:01:39]}  Bd4 {[%clk 0:01:40]} 25. Nxd4 {[%clk 0:01:33]}  cxd4 {[%clk 0:01:41]} 26. Rxb7 {[%clk 0:01:33]}  Re8 {[%clk 0:01:39]} 27. Kf1 {[%clk 0:01:31]}  Rf8+ {[%clk 0:01:40]} 28. Ke1 {[%clk 0:01:31]}  Rf2 {[%clk 0:01:41]} 29. Rxh7+ {[%clk 0:01:28]}  Kg8 {[%clk 0:01:41]} 30. Rd7 {[%clk 0:01:27]}  Rxh2 {[%clk 0:01:41]} 31. Rxd4 {[%clk 0:01:27]}  Rh4 {[%clk 0:01:39]} 32. Rxh4 {[%clk 0:01:26]} 1-0

[Event "November 21 Late 2023"]
[Site "https://www.chess.com"]
[Date "2023.11.21"]
[Round "9"]
[White "Cooper, Aaron"]
[Black "Kovacsy, Barnabas"]
[Result "1-0"]
[Board "86"]
[TimeControl "180+1"]
[WhiteFideId "2634945"]
[BlackFideId "769290"]
[WhiteElo "2331"]
[BlackElo "2130"]
[WhiteTeam "CAN"]
[BlackTeam "HUN"]
[WhiteClock "0:00:08"]
[BlackClock "0:00:06"]

1. e4 {[%clk 0:03:00]}  c5 {[%clk 0:02:58]} 2. Nf3 {[%clk 0:03:00]}  e6 {[%clk 0:02:58]} 3. d4 {[%clk 0:03:00]}  cxd4 {[%clk 0:02:58]} 4. Nxd4 {[%clk 0:03:00]}  Nc6 {[%clk 0:02:59]} 5. Nc3 {[%clk 0:02:59]}  Qc7 {[%clk 0:02:59]} 6. Be3 {[%clk 0:02:51]}  a6 {[%clk 0:02:58]} 7. Bd3 {[%clk 0:02:47]}  Nf6 {[%clk 0:02:58]} 8. O-O {[%clk 0:02:41]}  Ne5 {[%clk 0:02:58]} 9. h3 {[%clk 0:02:15]}  Bc5 {[%clk 0:02:57]} 10. f4 {[%clk 0:02:03]}  d6 {[%clk 0:02:57]} 11. Be2 {[%clk 0:01:44]}  O-O {[%clk 0:02:35]} 12. Qd2 {[%clk 0:01:36]}  Ng6 {[%clk 0:02:33]} 13. Rad1 {[%clk 0:01:32]}  b5 {[%clk 0:02:30]} 14. a3 {[%clk 0:01:22]}  Bb7 {[%clk 0:02:29]} 15. Bd3 {[%clk 0:01:15]}  Rac8 {[%clk 0:02:22]} 16. Qf2 {[%clk 0:01:15]}  Rfd8 {[%clk 0:02:00]} 17. f5 {[%clk 0:01:14]}  exf5 {[%clk 0:01:54]} 18. Nxf5 {[%clk 0:01:10]}  Bxe3 {[%clk 0:01:53]} 19. Qxe3 {[%clk 0:01:08]}  Qc5 {[%clk 0:01:50]} 20. Rfe1 {[%clk 0:00:47]}  Qxe3+ {[%clk 0:01:28]} 21. Rxe3 {[%clk 0:00:46]}  d5 {[%clk 0:01:28]} 22. e5 {[%clk 0:00:43]}  Nd7 {[%clk 0:01:01]} 23. e6 {[%clk 0:00:42]}  fxe6 {[%clk 0:00:57]} 24. Rxe6 {[%clk 0:00:41]}  Nc5 {[%clk 0:00:55]} 25. Ne7+ {[%clk 0:00:33]}  Nxe7 {[%clk 0:00:55]} 26. Rxe7 {[%clk 0:00:34]}  Bc6 {[%clk 0:00:50]} 27. Bf5 {[%clk 0:00:29]}  Re8 {[%clk 0:00:44]} 28. Rde1 {[%clk 0:00:25]}  Rxe7 {[%clk 0:00:36]} 29. Rxe7 {[%clk 0:00:26]}  Rf8 {[%clk 0:00:36]} 30. g4 {[%clk 0:00:25]}  d4 {[%clk 0:00:36]} 31. Ne2 {[%clk 0:00:23]}  g6 {[%clk 0:00:29]} 32. Be6+ {[%clk 0:00:18]}  Nxe6 {[%clk 0:00:26]} 33. Rxe6 {[%clk 0:00:19]}  Bd5 {[%clk 0:00:17]} 34. Rd6 {[%clk 0:00:18]}  Bc4 {[%clk 0:00:17]} 35. Nxd4 {[%clk 0:00:19]}  Rf1+ {[%clk 0:00:14]} 36. Kg2 {[%clk 0:00:19]}  Rb1 {[%clk 0:00:14]} 37. b3 {[%clk 0:00:19]}  Bf7 {[%clk 0:00:13]} 38. Rd8+ {[%clk 0:00:19]}  Kg7 {[%clk 0:00:13]} 39. Rd7 {[%clk 0:00:20]}  Kf6 {[%clk 0:00:13]} 40. Ra7 {[%clk 0:00:19]}  Rd1 {[%clk 0:00:11]} 41. Rxa6+ {[%clk 0:00:20]}  Ke5 {[%clk 0:00:11]} 42. Nxb5 {[%clk 0:00:20]}  Rd2+ {[%clk 0:00:11]} 43. Kg3 {[%clk 0:00:20]}  Bd5 {[%clk 0:00:11]} 44. Nc7 {[%clk 0:00:13]}  Bb7 {[%clk 0:00:08]} 45. Rb6 {[%clk 0:00:12]}  Rg2+ {[%clk 0:00:08]} 46. Kh4 {[%clk 0:00:12]}  Be4 {[%clk 0:00:08]} 47. Kg5 {[%clk 0:00:11]}  Rxc2 {[%clk 0:00:06]} 48. Re6+ {[%clk 0:00:10]}  Kd4 {[%clk 0:00:06]} 49. Nb5+ {[%clk 0:00:09]}  Kd3 {[%clk 0:00:06]} 50. Nd6 {[%clk 0:00:04]}  Bd5 {[%clk 0:00:06]} 51. Re7 {[%clk 0:00:05]}  Rh2 {[%clk 0:00:05]} 52. Rxh7 {[%clk 0:00:05]}  Bxb3 {[%clk 0:00:05]} 53. Kxg6 {[%clk 0:00:05]}  Kd4 {[%clk 0:00:05]} 54. Nf5+ {[%clk 0:00:05]}  Ke5 {[%clk 0:00:05]} 55. h4 {[%clk 0:00:05]}  Rg2 {[%clk 0:00:04]} 56. Re7+ {[%clk 0:00:05]}  Kd5 {[%clk 0:00:03]} 57. Kg5 {[%clk 0:00:06]}  Bc2 {[%clk 0:00:03]} 58. Ne3+ {[%clk 0:00:06]}  Kd4 {[%clk 0:00:03]} 59. Nxg2 {[%clk 0:00:06]}  Kc5 {[%clk 0:00:03]} 60. h5 {[%clk 0:00:07]}  Kb6 {[%clk 0:00:04]} 61. h6 {[%clk 0:00:08]}  Ka5 {[%clk 0:00:05]} 62. h7 {[%clk 0:00:08]}  Ka6 {[%clk 0:00:05]} 63. h8=Q {[%clk 0:00:08]}  Bb3 {[%clk 0:00:06]} 64. Qb8 {[%clk 0:00:08]}  Bd5 {[%clk 0:00:06]} 65. Ra7# {[%clk 0:00:08]} 1-0

[Event "November 21 Late 2023"]
[Site "https://www.chess.com"]
[Date "2023.11.21"]
[Round "9"]
[White "rikchessmx"]
[Black "topce"]
[Result "0-1"]
[Board "88"]
[TimeControl "180+1"]
[WhiteElo "2303"]
[BlackElo "2439"]
[WhiteClock "0:00:00"]
[BlackClock "0:01:06"]

1. e4 {[%clk 0:02:57]}  c5 {[%clk 0:02:59]} 2. Nf3 {[%clk 0:02:52]}  Nc6 {[%clk 0:02:58]} 3. d4 {[%clk 0:02:53]}  cxd4 {[%clk 0:02:58]} 4. Nxd4 {[%clk 0:02:53]}  e5 {[%clk 0:02:59]} 5. Nxc6 {[%clk 0:02:53]}  bxc6 {[%clk 0:02:59]} 6. Bc4 {[%clk 0:02:53]}  Nf6 {[%clk 0:03:00]} 7. Qf3 {[%clk 0:02:52]}  d5 {[%clk 0:02:50]} 8. exd5 {[%clk 0:02:52]}  cxd5 {[%clk 0:02:50]} 9. Bb5+ {[%clk 0:02:51]}  Bd7 {[%clk 0:02:50]} 10. Bxd7+ {[%clk 0:02:50]}  Qxd7 {[%clk 0:02:51]} 11. O-O {[%clk 0:02:43]}  e4 {[%clk 0:02:34]} 12. Qb3 {[%clk 0:02:24]}  Bc5 {[%clk 0:02:24]} 13. Bg5 {[%clk 0:02:14]}  Ng4 {[%clk 0:02:16]} 14. Bh4 {[%clk 0:02:00]}  O-O {[%clk 0:01:40]} 15. Nc3 {[%clk 0:00:24]}  Rab8 {[%clk 0:01:38]} 16. Qxd5 {[%clk 0:00:22]}  Qxd5 {[%clk 0:01:36]} 17. Nxd5 {[%clk 0:00:22]}  Rxb2 {[%clk 0:01:36]} 18. h3 {[%clk 0:00:17]}  Ne5 {[%clk 0:01:27]} 19. Bg3 {[%clk 0:00:15]}  Nc4 {[%clk 0:01:23]} 20. Rfc1 {[%clk 0:00:12]}  f5 {[%clk 0:01:13]} 21. Bf4 {[%clk 0:00:07]}  h6 {[%clk 0:01:11]} 22. h4 {[%clk 0:00:00]}  Rd8 {[%clk 0:01:06]} 0-1

[Event "November 21 Late 2023"]
[Site "https://www.chess.com"]
[Date "2023.11.21"]
[Round "9"]
[White "Jimenez Ruano, Adrian"]
[Black "Vemparala, Nikash"]
[Result "0-1"]
[Board "89"]
[TimeControl "180+1"]
[WhiteFideId "22276050"]
[BlackFideId "30960967"]
[WhiteElo "2215"]
[BlackElo "2069"]
[WhiteTeam "ESP"]
[BlackTeam "USA"]
[WhiteClock "0:00:03"]
[BlackClock "0:00:11"]

1. Nf3 {[%clk 0:03:00]}  d5 {[%clk 0:02:59]} 2. b3 {[%clk 0:03:01]}  Nd7 {[%clk 0:02:59]} 3. Bb2 {[%clk 0:03:01]}  c5 {[%clk 0:02:55]} 4. e3 {[%clk 0:03:00]}  Ngf6 {[%clk 0:02:54]} 5. c4 {[%clk 0:02:59]}  e6 {[%clk 0:02:54]} 6. Be2 {[%clk 0:02:57]}  Be7 {[%clk 0:02:53]} 7. O-O {[%clk 0:02:58]}  O-O {[%clk 0:02:52]} 8. Nc3 {[%clk 0:02:58]}  b6 {[%clk 0:02:28]} 9. cxd5 {[%clk 0:02:59]}  exd5 {[%clk 0:02:27]} 10. d4 {[%clk 0:02:58]}  Bb7 {[%clk 0:02:28]} 11. Rc1 {[%clk 0:02:54]}  Ne4 {[%clk 0:02:27]} 12. Nxe4 {[%clk 0:02:52]}  dxe4 {[%clk 0:02:26]} 13. Nd2 {[%clk 0:02:53]}  Nf6 {[%clk 0:02:22]} 14. Qc2 {[%clk 0:02:48]}  Rc8 {[%clk 0:02:20]} 15. Qb1 {[%clk 0:02:47]}  Qd7 {[%clk 0:02:16]} 16. Rfd1 {[%clk 0:02:47]}  Rfd8 {[%clk 0:02:10]} 17. dxc5 {[%clk 0:02:40]}  Bxc5 {[%clk 0:01:47]} 18. Nxe4 {[%clk 0:02:20]}  Bxe4 {[%clk 0:01:46]} 19. Rxd7 {[%clk 0:02:19]}  Bxb1 {[%clk 0:01:46]} 20. Rxd8+ {[%clk 0:02:20]}  Rxd8 {[%clk 0:01:46]} 21. Rxb1 {[%clk 0:02:21]}  Rd2 {[%clk 0:01:45]} 22. Bf3 {[%clk 0:02:22]}  Nd5 {[%clk 0:01:36]} 23. Kf1 {[%clk 0:01:43]}  Nb4 {[%clk 0:01:31]} 24. Ke1 {[%clk 0:01:30]}  Rxb2 {[%clk 0:01:24]} 25. Rxb2 {[%clk 0:01:28]}  Nd3+ {[%clk 0:01:24]} 26. Kd2 {[%clk 0:01:28]}  Nxb2 {[%clk 0:01:25]} 27. Kc3 {[%clk 0:01:16]}  Ba3 {[%clk 0:01:24]} 28. b4 {[%clk 0:01:06]}  b5 {[%clk 0:01:22]} 29. Bc6 {[%clk 0:00:48]}  a6 {[%clk 0:01:08]} 30. Bb7 {[%clk 0:00:45]}  Nc4 {[%clk 0:01:07]} 31. Bxa6 {[%clk 0:00:43]}  Nd6 {[%clk 0:01:03]} 32. Kb3 {[%clk 0:00:36]}  Bc1 {[%clk 0:01:03]} 33. a4 {[%clk 0:00:37]}  bxa4+ {[%clk 0:00:53]} 34. Kxa4 {[%clk 0:00:38]}  Kf8 {[%clk 0:00:53]} 35. b5 {[%clk 0:00:35]}  Ke7 {[%clk 0:00:53]} 36. b6 {[%clk 0:00:14]}  Kd7 {[%clk 0:00:52]} 37. e4 {[%clk 0:00:15]}  Nxe4 {[%clk 0:00:47]} 38. Kb5 {[%clk 0:00:14]}  Nd6+ {[%clk 0:00:45]} 39. Kc5 {[%clk 0:00:14]}  Ba3+ {[%clk 0:00:41]} 40. Kd5 {[%clk 0:00:14]}  f6 {[%clk 0:00:32]} 41. f3 {[%clk 0:00:14]}  Bb4 {[%clk 0:00:27]} 42. h3 {[%clk 0:00:13]}  Ba5 {[%clk 0:00:16]} 43. b7 {[%clk 0:00:12]}  Bc7 {[%clk 0:00:15]} 44. f4 {[%clk 0:00:06]}  Bb8 {[%clk 0:00:15]} 45. g4 {[%clk 0:00:06]}  Ne8 {[%clk 0:00:10]} 46. Bb5+ {[%clk 0:00:05]}  Ke7 {[%clk 0:00:11]} 47. f5 {[%clk 0:00:02]}  Nc7+ {[%clk 0:00:11]} 48. Kc6 {[%clk 0:00:02]}  Nxb5 {[%clk 0:00:12]} 49. Kxb5 {[%clk 0:00:03]}  Kd6 {[%clk 0:00:12]} 50. Kb6 {[%clk 0:00:03]}  Kd7 {[%clk 0:00:10]} 51. Kb5 {[%clk 0:00:02]}  Kc7 {[%clk 0:00:10]} 52. Ka6 {[%clk 0:00:03]}  Kc6 {[%clk 0:00:10]} 53. h4 {[%clk 0:00:04]}  h6 {[%clk 0:00:09]} 54. h5 {[%clk 0:00:04]}  Kc7 {[%clk 0:00:10]} 55. Kb5 {[%clk 0:00:04]}  Kxb7 {[%clk 0:00:10]} 56. Kc5 {[%clk 0:00:05]}  Kc7 {[%clk 0:00:11]} 57. Kd5 {[%clk 0:00:06]}  Kd7 {[%clk 0:00:12]} 58. Kc5 {[%clk 0:00:07]}  Bf4 {[%clk 0:00:12]} 59. Kd5 {[%clk 0:00:08]}  Bg5 {[%clk 0:00:12]} 60. Kc5 {[%clk 0:00:08]}  Kc7 {[%clk 0:00:13]} 61. Kd5 {[%clk 0:00:09]}  Kd7 {[%clk 0:00:11]} 62. Kc5 {[%clk 0:00:10]}  Bf4 {[%clk 0:00:11]} 63. Kd5 {[%clk 0:00:11]}  Bd6 {[%clk 0:00:12]} 64. Kc4 {[%clk 0:00:10]}  Kc6 {[%clk 0:00:12]} 65. Kd4 {[%clk 0:00:11]}  Be5+ {[%clk 0:00:12]} 66. Kc4 {[%clk 0:00:11]}  Kd6 {[%clk 0:00:12]} 67. Kd3 {[%clk 0:00:06]}  Kd5 {[%clk 0:00:13]} 68. Ke3 {[%clk 0:00:06]}  Bd4+ {[%clk 0:00:13]} 69. Kf4 {[%clk 0:00:07]}  Bc5 {[%clk 0:00:10]} 70. g5 {[%clk 0:00:06]}  fxg5+ {[%clk 0:00:11]} 71. Kg4 {[%clk 0:00:03]}  Ke5 {[%clk 0:00:11]} 0-1

[Event "November 21 Late 2023"]
[Site "https://www.chess.com"]
[Date "2023.11.21"]
[Round "9"]
[White "Swicarz, Maciej"]
[Black "Curtis, John"]
[Result "0-1"]
[Board "90"]
[TimeControl "180+1"]
[WhiteFideId "1113585"]
[BlackFideId "3200256"]
[WhiteElo "2127"]
[BlackElo "2203"]
[WhiteTeam "POL"]
[BlackTeam "AUS"]
[WhiteClock "0:00:00"]
[BlackClock "0:00:13"]

1. e4 {[%clk 0:03:00]}  c5 {[%clk 0:02:57]} 2. Nc3 {[%clk 0:02:59]}  d6 {[%clk 0:02:57]} 3. d4 {[%clk 0:02:59]}  cxd4 {[%clk 0:02:57]} 4. Qxd4 {[%clk 0:03:00]}  Bd7 {[%clk 0:02:56]} 5. b3 {[%clk 0:02:59]}  Nf6 {[%clk 0:02:49]} 6. Bb2 {[%clk 0:02:59]}  Nc6 {[%clk 0:02:46]} 7. Qd2 {[%clk 0:02:59]}  e5 {[%clk 0:02:46]} 8. O-O-O {[%clk 0:02:57]}  a6 {[%clk 0:02:44]} 9. f3 {[%clk 0:02:57]}  Be6 {[%clk 0:02:44]} 10. g4 {[%clk 0:02:55]}  h6 {[%clk 0:02:42]} 11. h4 {[%clk 0:02:54]}  Be7 {[%clk 0:02:40]} 12. Kb1 {[%clk 0:02:50]}  b5 {[%clk 0:02:27]} 13. Nge2 {[%clk 0:02:44]}  b4 {[%clk 0:02:21]} 14. Na4 {[%clk 0:02:44]}  Nd7 {[%clk 0:02:08]} 15. Nc1 {[%clk 0:02:32]}  Nb6 {[%clk 0:02:07]} 16. Nxb6 {[%clk 0:02:26]}  Qxb6 {[%clk 0:02:07]} 17. Bd3 {[%clk 0:02:01]}  O-O-O {[%clk 0:01:58]} 18. c4 {[%clk 0:01:41]}  g5 {[%clk 0:01:45]} 19. h5 {[%clk 0:01:38]}  Na5 {[%clk 0:01:35]} 20. Bc2 {[%clk 0:01:33]}  Nb7 {[%clk 0:01:34]} 21. Nd3 {[%clk 0:01:31]}  a5 {[%clk 0:01:33]} 22. a3 {[%clk 0:01:25]}  bxa3 {[%clk 0:01:28]} 23. Bxa3 {[%clk 0:01:26]}  Nc5 {[%clk 0:01:28]} 24. Ka2 {[%clk 0:01:22]}  Kc7 {[%clk 0:01:11]} 25. Qc3 {[%clk 0:01:16]}  f6 {[%clk 0:01:03]} 26. Nb2 {[%clk 0:00:54]}  Bd7 {[%clk 0:00:53]} 27. Rd2 {[%clk 0:00:51]}  Bc6 {[%clk 0:00:53]} 28. Rhd1 {[%clk 0:00:50]}  Rd7 {[%clk 0:00:49]} 29. Bxc5 {[%clk 0:00:45]}  dxc5 {[%clk 0:00:42]} 30. Rxd7+ {[%clk 0:00:41]}  Bxd7 {[%clk 0:00:42]} 31. Rd5 {[%clk 0:00:24]}  Bc6 {[%clk 0:00:41]} 32. Nd3 {[%clk 0:00:23]}  Ra8 {[%clk 0:00:28]} 33. Nb2 {[%clk 0:00:09]}  Qb4 {[%clk 0:00:24]} 34. Qd3 {[%clk 0:00:07]}  a4 {[%clk 0:00:23]} 35. Nxa4 {[%clk 0:00:05]}  Bxa4 {[%clk 0:00:20]} 36. bxa4 {[%clk 0:00:04]}  Rd8 {[%clk 0:00:16]} 37. Rxd8 {[%clk 0:00:03]}  Bxd8 {[%clk 0:00:17]} 38. Qd5 {[%clk 0:00:03]}  Be7 {[%clk 0:00:15]} 39. Qf7 {[%clk 0:00:02]}  Kd6 {[%clk 0:00:15]} 40. Qd5+ {[%clk 0:00:02]}  Kc7 {[%clk 0:00:15]} 41. Bb3 {[%clk 0:00:02]}  Qc3 {[%clk 0:00:14]} 42. Qe6 {[%clk 0:00:02]}  Qd2+ {[%clk 0:00:14]} 43. Kb1 {[%clk 0:00:00]}  Bd6 {[%clk 0:00:13]} 0-1